bitfinex/quotes_BTCUSD_20241022
["timestamp","ask_amount","ask_price","bid_price","bid_amount"]
[1729622815263,0.22349025,67452.0,67451.0,0.26893216]
[1729622815501,0.22349025,67452.0,67451.0,0.420856]
[1729622815737,0.000826,67452.0,67451.0,0.55270979]
[1729622815992,0.22266425,67459.0,67458.0,0.27091716]
[1729622816225,0.22266425,67459.0,67458.0,0.52892019]
[1729622816458,0.22266425,67459.0,67458.0,0.63656813]
[1729622816652,0.00168,67469.0,67465.0,0.15890216]
[1729622816896,0.00168,67469.0,67465.0,0.51594071]
[1729622817133,0.00168,67466.0,67465.0,0.51594071]
[1729622817901,0.17918,67466.0,67465.0,0.51594071]
[1729622819714,0.17918,67466.0,67465.0,0.51094071]
[1729622819952,0.17918,67466.0,67465.0,0.40286131]
[1729622820184,0.17918,67466.0,67465.0,0.51594071]
[1729622821349,0.17918,67466.0,67465.0,0.51094071]
[1729622821587,0.17918,67466.0,67465.0,0.51594071]
[1729622824046,0.17918,67466.0,67465.0,0.52094071]
[1729622824905,0.17918,67466.0,67465.0,0.51594071]
[1729622825114,0.17918,67466.0,67465.0,0.52594071]
[1729622827769,0.17918,67466.0,67465.0,0.52094071]
[1729622828637,0.17918,67466.0,67465.0,0.51594071]
[1729622829375,0.17844404,67466.0,67465.0,0.52594071]
[1729622830231,0.17844404,67466.0,67465.0,0.63402011]
[1729622830862,0.17844404,67466.0,67465.0,0.57009381]
[1729622830863,0.10074404,67466.0,67465.0,0.57009381]
[1729622831070,0.10074404,67466.0,67465.0,0.52594071]
[1729622834110,0.10074404,67466.0,67465.0,0.5700866]
[1729622834378,0.10074404,67466.0,67465.0,0.52594071]
[1729622835331,0.10074404,67466.0,67465.0,0.5700866]
[1729622836314,0.10074404,67466.0,67465.0,0.52594071]
[1729622836769,0.10074404,67466.0,67465.0,0.63402011]
[1729622837621,0.00094404,67466.0,67465.0,0.70223895]
[1729622838520,0.00094404,67466.0,67465.0,0.68014345]
[1729622839187,0.00094404,67466.0,67465.0,0.70223895]
[1729622839661,0.00094404,67466.0,67465.0,0.68014107]
[1729622840149,0.00094404,67466.0,67465.0,0.63402011]
[1729622840376,0.00094404,67466.0,67465.0,0.67813964]
[1729622840817,0.00094404,67466.0,67465.0,0.63402011]
[1729622841061,0.00094404,67466.0,67465.0,0.68013964]
[1729622842817,0.00094404,67466.0,67465.0,0.68012901]
[1729622843506,0.00094404,67466.0,67465.0,0.63402011]
[1729622844123,0.00094404,67466.0,67465.0,0.67812901]
[1729622845416,0.00094404,67466.0,67465.0,0.70183346]
[1729622847484,0.00094404,67466.0,67465.0,0.70183675]
[1729622848377,0.00094404,67466.0,67465.0,0.63567011]
[1729622849232,0.00094404,67466.0,67465.0,0.70184267]
[1729622852235,0.00094404,67466.0,67465.0,0.70186208]
[1729622852463,0.00094404,67466.0,67465.0,0.63567011]
[1729622853136,0.00094404,67466.0,67465.0,0.63767011]
[1729622853403,0.00094404,67466.0,67465.0,0.72392607]
[1729622853864,0.00094404,67466.0,67465.0,0.72365332]
[1729622854349,0.00094404,67466.0,67465.0,0.63739736]
[1729622854592,0.0049059,67475.0,67469.0,0.59485861]
[1729622854593,0.1034059,67475.0,67469.0,0.59485861]
[1729622854814,0.1034059,67475.0,67474.0,0.02040441]
[1729622855043,0.0049059,67475.0,67474.0,0.69993115]
[1729622856197,0.0049059,67475.0,67474.0,0.72199908]
[1729622856425,0.0049059,67475.0,67474.0,0.63372736]
[1729622857168,0.0049059,67475.0,67474.0,0.74408773]
[1729622857416,0.0049059,67475.0,67474.0,0.63372736]
[1729622857663,0.0049059,67475.0,67474.0,0.63572736]
[1729622858989,0.0057309,67475.0,67474.0,0.63572736]
[1729622861342,9e-07,67475.0,67474.0,0.76829948]
[1729622861830,9e-07,67475.0,67474.0,0.63572736]
[1729622863142,9e-07,67475.0,67474.0,0.63372736]
[1729622863840,9e-07,67475.0,67474.0,0.63572736]
[1729622872380,0.0985,67484.0,67483.0,0.16858941]
[1729622872589,0.0985,67484.0,67483.0,0.63370736]
[1729622881478,0.0985,67484.0,67483.0,0.74419919]
[1729622882544,0.0985,67484.0,67483.0,0.63370736]
[1729622882757,0.009589,67484.0,67483.0,0.74421156]
[1729622882948,0.08107,67489.0,67488.0,0.26857841]
[1729622883234,0.08107,67489.0,67488.0,0.52561696]
[1729622884010,0.08107,67489.0,67488.0,0.40253756]
[1729622884216,0.08107,67489.0,67488.0,0.15357841]
[1729622884450,0.08107,67489.0,67488.0,0.14966507]
[1729622884904,0.08107,67489.0,67488.0,0.15357841]
[1729622885367,0.08107,67489.0,67488.0,0.36165781]
[1729622885807,0.17767,67489.0,67488.0,0.36165781]
[1729622887175,0.17767,67489.0,67488.0,0.25357841]
[1729622888947,0.17767,67489.0,67488.0,0.24966507]
[1729622889174,0.17767,67489.0,67485.0,0.10149107]
[1729622889175,0.00177,67489.0,67485.0,0.10149107]
[1729622889399,0.1756,67488.0,67487.0,0.248175]
[1729622889611,0.1756,67488.0,67487.0,0.248176]
[1729622892395,0.1756,67488.0,67487.0,0.24966707]
[1729622892596,0.1756,67488.0,67487.0,0.25358041]
[1729622900189,0.1756,67488.0,67487.0,0.148176]
[1729622900862,0.0782,67486.0,67485.0,0.296362]
[1729622901082,0.1702,67486.0,67485.0,0.148181]
[1729622902468,0.1702,67488.0,67484.0,0.149833]
[1729622902688,0.1098494,67489.0,67485.0,0.148179]
[1729622903119,0.1702,67488.0,67485.0,0.148179]
[1729622903332,0.00177,67489.0,67485.0,0.148179]
[1729622903546,0.1705,67487.0,67485.0,0.296361]
[1729622903755,0.1705,67488.0,67485.0,0.444539]
[1729622903996,0.1705,67488.0,67487.0,0.148175]
[1729622904204,0.1705,67488.0,67485.0,0.44454]
[1729622904826,0.1732,67488.0,67485.0,0.296361]
[1729622905036,0.1732,67487.0,67486.0,0.148178]
[1729622905894,0.00177,67489.0,67484.0,0.001652]
[1729622905895,0.1098494,67489.0,67484.0,0.001652]
[1729622906098,0.1792,67486.0,67485.0,0.14818]
[1729622908321,0.1742,67485.0,67484.0,0.001652]
[1729622908745,0.1972,67485.0,67484.0,0.001652]
[1729622908956,0.345381,67485.0,67484.0,0.001652]
[1729622909638,0.1972,67485.0,67484.0,0.001652]
[1729622911341,0.1742,67485.0,67484.0,0.001652]
[1729622911968,0.1742,67485.0,67484.0,0.149835]
[1729622912189,0.1742,67485.0,67484.0,0.001652]
[1729622912615,0.1742,67485.0,67484.0,0.149835]
[1729622914480,0.1742,67485.0,67484.0,0.15132607]
[1729622917904,0.1742,67485.0,67484.0,0.149835]
[1729622918392,0.1742,67485.0,67484.0,0.001652]
[1729622927173,0.175026,67485.0,67484.0,0.001652]
[1729622927614,0.4542864,67485.0,67484.0,0.001652]
[1729622927825,0.346207,67485.0,67484.0,0.001652]
[1729622928946,0.49397404,67485.0,67484.0,0.001652]
[1729622929163,0.76452152,67485.0,67484.0,0.001652]
[1729622929377,0.8108933,67485.0,67484.0,0.001652]
[1729622929592,1.01893025,67485.0,67484.0,0.001652]
[1729622930038,0.93034457,67485.0,67484.0,0.001652]
[1729622930254,0.72301174,67485.0,67484.0,0.001652]
[1729622930473,0.72301127,67485.0,67484.0,0.001652]
[1729622930722,0.65644212,67485.0,67484.0,0.001652]
[1729622930960,0.57524423,67485.0,67484.0,0.001652]
[1729622931197,0.50867508,67485.0,67484.0,0.001652]
[1729622931651,0.61675448,67485.0,67484.0,0.001652]
[1729622933153,0.77120068,67485.0,67484.0,0.001652]
[1729622933386,0.87579303,67485.0,67484.0,0.001652]
[1729622933586,0.94234514,67485.0,67484.0,0.001652]
[1729622935948,1.19383734,67485.0,67484.0,0.001652]
[1729622936170,6.13575794,67485.0,67484.0,0.001652]
[1729622936398,1.08575794,67485.0,67484.0,0.001652]
[1729622936627,5.97202472,67485.0,67484.0,0.001652]
[1729622936840,6.13573149,67485.0,67484.0,0.001652]
[1729622937473,1.08573149,67485.0,67484.0,0.001652]
[1729622939620,1.19654524,67485.0,67484.0,0.001652]
[1729622940302,1.19854524,67485.0,67484.0,0.001652]
[1729622940771,1.08773149,67485.0,67484.0,0.001652]
[1729622941409,1.19853887,67485.0,67484.0,0.001652]
[1729622942290,1.0414998,67485.0,67484.0,0.001652]
[1729622942708,1.19848547,67485.0,67484.0,0.001652]
[1729622943113,1.15230718,67485.0,67484.0,0.001652]
[1729622943605,1.19848202,67485.0,67484.0,0.001652]
[1729622944064,1.15230718,67485.0,67484.0,0.001652]
[1729622944740,3.9025792,67485.0,67484.0,0.001652]
[1729622944949,6.13766784,67485.0,67484.0,0.001652]
[1729622945393,6.24846156,67485.0,67484.0,0.001652]
[1729622945611,6.13766784,67485.0,67484.0,0.001652]
[1729622945815,6.0914998,67485.0,67484.0,0.001652]
[1729622946021,6.13766229,67485.0,67484.0,0.001652]
[1729622946211,6.248456,67485.0,67484.0,0.001652]
[1729622946427,6.13765994,67485.0,67484.0,0.001652]
[1729622946637,6.20229751,67485.0,67484.0,0.001652]
[1729622948389,6.20229751,67485.0,67474.0,0.001652]
[1729622948390,0.18671193,67475.0,67474.0,0.001652]
[1729622948624,0.76424678,67475.0,67474.0,0.001652]
[1729622948859,0.89014272,67475.0,67474.0,0.001652]
[1729622949120,0.97877652,67475.0,67474.0,0.001652]
[1729622949338,0.79301122,67475.0,67474.0,0.001652]
[1729622949563,0.94196985,67475.0,67474.0,0.001652]
[1729622949983,0.87550538,67475.0,67474.0,0.001652]
[1729622950412,0.94197013,67475.0,67474.0,0.001652]
[1729622950842,1.03904992,67475.0,67474.0,0.001652]
[1729622951049,0.87550538,67475.0,67474.0,0.001652]
[1729622951260,0.94196059,67475.0,67474.0,0.001652]
[1729622952176,0.87550538,67475.0,67474.0,0.001652]
[1729622952392,5.99196059,67475.0,67474.0,0.001652]
[1729622952600,5.99194654,67475.0,67474.0,0.001652]
[1729622952808,6.17760748,67475.0,67474.0,0.001652]
[1729622953280,5.99193868,67475.0,67474.0,0.001652]
[1729622953502,5.99193884,67475.0,67474.0,0.001652]
[1729622953706,5.92550538,67475.0,67474.0,0.001652]
[1729622954104,5.99194016,67475.0,67474.0,0.001652]
[1729622954599,5.99193433,67475.0,67474.0,0.001652]
[1729622954816,5.99193237,67475.0,67474.0,0.001652]
[1729622955028,5.92550538,67475.0,67474.0,0.001652]
[1729622955239,5.99193175,67475.0,67474.0,0.001652]
[1729622955445,5.92550538,67475.0,67474.0,0.001652]
[1729622956161,5.99743527,67475.0,67474.0,0.001652]
[1729622956859,5.9310089,67475.0,67474.0,0.001652]
[1729622957325,5.99743527,67475.0,67474.0,0.001652]
[1729622958211,5.9310089,67475.0,67474.0,0.001652]
[1729622959016,5.97527492,67475.0,67474.0,0.001652]
[1729622959653,5.9310089,67475.0,67474.0,0.001652]
[1729622959878,0.16173093,67466.0,67465.0,0.00165]
[1729622960162,0.72504888,67466.0,67465.0,0.00165]
[1729622960398,0.17475993,67453.0,67452.0,0.00165]
[1729622960614,0.60499848,67453.0,67452.0,0.00165]
[1729622961049,0.75395763,67453.0,67452.0,0.00165]
[1729622962146,0.17546808,67453.0,67452.0,0.00165]
[1729622962374,0.28354748,67453.0,67452.0,0.00165]
[1729622962819,0.1310794,67453.0,67452.0,0.00165]
[1729622964329,0.023,67453.0,67452.0,0.00165]
[1729622964593,0.18241036,67456.0,67452.0,0.00165]
[1729622964594,0.023,67455.0,67452.0,0.00165]
[1729622964811,0.01704493,67454.0,67452.0,0.00165]
[1729622965030,0.023,67453.0,67452.0,0.00165]
[1729622965485,0.19190143,67453.0,67452.0,0.00165]
[1729622969065,0.023,67453.0,67452.0,0.00165]
[1729622971728,0.01704493,67454.0,67452.0,0.00165]
[1729622971729,0.005,67456.0,67452.0,0.00165]
[1729622975526,0.05556482,67455.0,67452.0,0.00165]
[1729622975727,0.16890143,67454.0,67452.0,0.00165]
[1729622976972,0.31715143,67454.0,67452.0,0.00165]
[1729622977181,0.16890143,67454.0,67452.0,0.00165]
[1729622980124,0.148251,67453.0,67452.0,0.00165]
[1729622980333,0.10022042,67453.0,67452.0,0.00165]
[1729622985966,0.24847142,67453.0,67452.0,0.00165]
[1729622986172,0.10022042,67453.0,67452.0,0.00165]
[1729622990264,0.023,67454.0,67452.0,0.00165]
[1729622992452,0.171249,67454.0,67452.0,0.00165]
[1729622993302,0.023,67454.0,67452.0,0.00165]
[1729622997053,0.296483,67458.0,67452.0,0.00165]
[1729622997054,0.04442412,67462.0,67453.0,0.41193741]
[1729622997312,0.22266425,67460.0,67459.0,0.14972907]
[1729622997759,0.000826,67465.0,67459.0,0.14972907]
[1729622997760,0.000826,67465.0,67459.0,0.00149107]
[1729622997991,0.000826,67465.0,67459.0,0.14972707]
[1729622998204,0.000826,67465.0,67460.0,0.148235]
[1729622998849,0.000826,67465.0,67459.0,0.00149107]
[1729622999744,0.1285826,67465.0,67459.0,0.00149107]
[1729622999965,0.10807316,67463.0,67458.0,0.00149107]
[1729623000184,0.10807316,67463.0,67458.0,0.14973107]
[1729623000410,0.10807316,67463.0,67458.0,0.00149107]
[1729623000625,0.1285826,67465.0,67457.0,0.00149107]
[1729623000837,0.1285826,67465.0,67458.0,0.14973007]
[1729623001050,0.1285826,67465.0,67459.0,0.148237]
[1729623001261,0.1285826,67465.0,67458.0,0.29797007]
[1729623001442,0.000826,67465.0,67458.0,0.29797007]
[1729623001697,0.000826,67465.0,67459.0,0.148237]
[1729623003012,0.000826,67465.0,67460.0,0.148235]
[1729623004076,0.000826,67465.0,67459.0,0.148237]
[1729623004919,0.000826,67465.0,67459.0,0.148238]
[1729623005870,0.148229,67463.0,67458.0,0.00149107]
[1729623006088,0.148232,67462.0,67456.0,0.00149107]
[1729623006324,0.148231,67463.0,67456.0,0.00149107]
[1729623006537,0.10807316,67464.0,67457.0,0.148242]
[1729623006538,0.25630116,67464.0,67457.0,0.148242]
[1729623007381,0.148229,67463.0,67457.0,0.148242]
[1729623008031,0.25630216,67464.0,67456.0,0.148243]
[1729623008490,0.25630216,67464.0,67457.0,0.148242]
[1729623009604,0.148229,67464.0,67457.0,0.148242]
[1729623010953,0.148232,67462.0,67455.0,0.14973707]
[1729623011156,0.148229,67463.0,67456.0,0.148242]
[1729623011653,0.148229,67463.0,67455.0,0.29798207]
[1729623011654,0.148229,67463.0,67457.0,0.148242]
[1729623011861,0.444686,67464.0,67456.0,0.148243]
[1729623012316,0.10824045,67463.0,67454.0,0.00149107]
[1729623012577,0.10824045,67463.0,67455.0,0.148245]
[1729623012578,0.148231,67462.0,67455.0,0.148245]
[1729623013048,0.148231,67462.0,67452.0,0.00556334]
[1729623013049,0.10807316,67461.0,67452.0,0.00165]
[1729623013263,0.0932,67461.0,67453.0,0.296502]
[1729623013524,0.023,67462.0,67456.0,0.148243]
[1729623013762,0.023,67462.0,67456.0,0.148244]
[1729623013978,0.023,67462.0,67457.0,0.148242]
[1729623014168,0.023,67463.0,67456.0,0.296489]
[1729623014466,0.023,67463.0,67455.0,0.0916]
[1729623014467,0.023826,67465.0,67458.0,0.148238]
[1729623014726,0.023826,67465.0,67456.0,0.148243]
[1729623014727,0.023,67463.0,67456.0,0.148243]
[1729623014981,0.17123,67463.0,67456.0,0.148243]
[1729623017200,0.148232,67462.0,67456.0,0.148243]
[1729623017675,0.148232,67462.0,67455.0,0.148246]
[1729623017930,0.148232,67462.0,67456.0,0.148244]
[1729623020560,0.444691,67463.0,67456.0,0.148243]
[1729623020886,0.10807316,67462.0,67453.0,0.00149107]
[1729623021079,0.10807316,67462.0,67456.0,0.001652]
[1729623021332,0.25630516,67462.0,67456.0,0.001652]
[1729623021978,0.25630516,67462.0,67456.0,0.149895]
[1729623022679,0.25630516,67462.0,67456.0,0.14981515]
[1729623024501,0.10807316,67462.0,67456.0,0.00157215]
[1729623024767,0.148236,67460.0,67456.0,0.00157215]
[1729623024969,0.10807316,67462.0,67456.0,0.14981615]
[1729623025401,0.148233,67461.0,67456.0,0.00157215]
[1729623025614,0.0811,67460.0,67456.0,0.00157215]
[1729623025834,0.15142724,67460.0,67456.0,0.00157215]
[1729623027849,0.15142724,67460.0,67456.0,0.14981615]
[1729623028061,0.15142724,67460.0,67456.0,0.00157215]
[1729623028293,0.15142724,67460.0,67456.0,0.14981615]
[1729623028502,0.15142724,67460.0,67456.0,0.00157215]
[1729623029191,0.15142724,67460.0,67456.0,0.14981415]
[1729623029633,0.04040534,67459.0,67456.0,0.14981415]
[1729623030915,0.04040534,67459.0,67456.0,0.00157215]
[1729623031142,0.15142724,67460.0,67456.0,0.00157215]
[1729623032203,0.15142724,67460.0,67456.0,0.14981515]
[1729623032398,0.15142724,67460.0,67456.0,0.00157215]
[1729623034120,0.0811,67460.0,67456.0,0.00157215]
[1729623034993,0.0811,67460.0,67456.0,0.14981615]
[1729623035216,0.0811,67460.0,67456.0,0.00157215]
[1729623035630,0.0811,67460.0,67456.0,0.14981515]
[1729623036054,0.0811,67460.0,67456.0,0.00157215]
[1729623037197,0.10807316,67459.0,67456.0,0.00157215]
[1729623037448,0.0912,67458.0,67456.0,0.00157215]
[1729623038565,0.32374709,67457.0,67456.0,0.00157215]
[1729623038782,0.27931516,67457.0,67456.0,0.00157215]
[1729623039016,0.45806072,67457.0,67456.0,0.00157215]
[1729623039233,0.74027893,67457.0,67456.0,0.00157215]
[1729623039443,0.81790994,67457.0,67456.0,0.00157215]
[1729623040086,0.7290269,67457.0,67456.0,0.00157215]
[1729623040311,0.81790994,67457.0,67456.0,0.00157215]
[1729623040935,0.7290269,67457.0,67456.0,0.00157215]
[1729623041145,0.56495844,67457.0,67456.0,0.00157215]
[1729623041396,0.63161772,67457.0,67456.0,0.00157215]
[1729623041607,0.56495844,67457.0,67456.0,0.00157215]
[1729623042454,0.11528921,67457.0,67456.0,0.00157215]
[1729623042663,0.159731,67457.0,67456.0,0.00157215]
[1729623043296,0.11528921,67457.0,67456.0,0.00157215]
[1729623043717,0.09228921,67457.0,67456.0,0.00157215]
[1729623043963,0.13672997,67457.0,67456.0,0.00157215]
[1729623044196,0.09228921,67457.0,67456.0,0.00157215]
[1729623048291,0.19129935,67457.0,67456.0,0.00157215]
[1729623049105,0.14686054,67457.0,67456.0,0.00157215]
[1729623052983,0.19129714,67457.0,67456.0,0.00157215]
[1729623053401,0.14686054,67457.0,67456.0,0.00157215]
[1729623056274,0.29510254,67457.0,67456.0,0.00157215]
[1729623056761,0.36175362,67457.0,67456.0,0.00157215]
[1729623057008,0.36175492,67457.0,67456.0,0.00157215]
[1729623058123,0.32158608,67457.0,67456.0,0.00157215]
[1729623058330,0.46982808,67457.0,67456.0,0.00157215]
[1729623059432,0.4031757,67457.0,67456.0,0.00157215]
[1729623059649,0.75336519,67457.0,67456.0,0.00157215]
[1729623059860,1.03579637,67457.0,67456.0,0.00157215]
[1729623060070,0.92772321,67457.0,67456.0,0.00157215]
[1729623060284,0.67484378,67457.0,67456.0,0.00157215]
[1729623060529,0.74149085,67457.0,67456.0,0.00157215]
[1729623060745,0.83885862,67457.0,67456.0,0.00157215]
[1729623060952,0.67484378,67457.0,67456.0,0.00157215]
[1729623061810,0.92772457,67457.0,67456.0,0.00157215]
[1729623062058,0.78291694,67457.0,67456.0,0.00157215]
[1729623062283,0.94693277,67457.0,67456.0,0.00157215]
[1729623062520,0.92772772,67457.0,67456.0,0.00157215]
[1729623062739,1.06801791,67457.0,67456.0,0.00157215]
[1729623062958,1.00522126,67457.0,67456.0,0.00157215]
[1729623063206,0.78707494,67457.0,67456.0,0.00157215]
[1729623063424,0.62683494,67457.0,67456.0,0.00157215]
[1729623063633,0.44060188,67457.0,67456.0,0.00157215]
[1729623063843,0.53796213,67457.0,67456.0,0.00157215]
[1729623064052,0.37478329,67457.0,67456.0,0.00157215]
[1729623064275,0.58966908,67457.0,67456.0,0.00157215]
[1729623064477,0.37478329,67457.0,67456.0,0.00157215]
[1729623064686,0.77589506,67457.0,67456.0,0.00157215]
[1729623065100,0.92485421,67457.0,67456.0,0.00157215]
[1729623065312,0.83599434,67457.0,67456.0,0.00157215]
[1729623065725,0.82599434,67457.0,67456.0,0.00157215]
[1729623065931,0.83599434,67457.0,67456.0,0.00157215]
[1729623066577,0.68703519,67457.0,67456.0,0.00157215]
[1729623068856,0.79510831,67457.0,67456.0,0.00157215]
[1729623069070,0.90618377,67457.0,67456.0,0.00157215]
[1729623069276,0.79510831,67457.0,67456.0,0.00157215]
[1729623069692,0.90618377,67457.0,67456.0,0.00157215]
[1729623070112,1.05514292,67457.0,67456.0,0.00157215]
[1729623070318,1.05514724,67457.0,67456.0,0.00157215]
[1729623070528,0.99338765,67457.0,67456.0,0.00157215]
[1729623070743,1.05515109,67457.0,67456.0,0.00157215]
[1729623071173,0.94406746,67457.0,67456.0,0.00157215]
[1729623071680,0.99037592,67457.0,67456.0,0.00157215]
[1729623072545,1.0551428,67457.0,67456.0,0.00157215]
[1729623072763,0.94406746,67457.0,67456.0,0.00157215]
[1729623073004,1.05514145,67457.0,67456.0,0.00157215]
[1729623073218,0.94406746,67457.0,67456.0,0.00157215]
[1729623073427,1.05513834,67457.0,67456.0,0.00157215]
[1729623073640,0.94406473,67457.0,67456.0,0.00157215]
[1729623074063,1.05513834,67457.0,67456.0,0.00157215]
[1729623074760,0.88230315,67457.0,67456.0,0.00157215]
[1729623074973,0.99037631,67457.0,67456.0,0.00157215]
[1729623075227,0.94406473,67457.0,67456.0,0.00157215]
[1729623075507,1.05514107,67457.0,67456.0,0.00157215]
[1729623075988,1.05714107,67457.0,67456.0,0.00157215]
[1729623076695,1.05514107,67457.0,67456.0,0.00157215]
[1729623076932,0.94706791,67457.0,67456.0,0.00157215]
[1729623077905,0.94707585,67457.0,67456.0,0.00157215]
[1729623078174,0.83599157,67457.0,67456.0,0.00157215]
[1729623078456,1.05514008,67457.0,67456.0,0.00157215]
[1729623078662,0.99035648,67457.0,67456.0,0.00157215]
[1729623079165,0.99235648,67457.0,67456.0,0.00157215]
[1729623079860,0.94606473,67457.0,67456.0,0.00157215]
[1729623080548,0.94406473,67457.0,67456.0,0.00157215]
[1729623080775,0.99035263,67457.0,67456.0,0.00157215]
[1729623081741,1.05413789,67457.0,67456.0,0.00157215]
[1729623082259,6.25042277,67457.0,67456.0,0.00157215]
[1729623082514,6.48000087,67457.0,67456.0,0.00157215]
[1729623082774,6.62993397,67457.0,67456.0,0.00157215]
[1729623083018,0.55690625,67453.0,67452.0,0.00165]
[1729623083260,0.55690625,67453.0,67441.0,0.22266425]
[1729623083261,0.47185709,67442.0,67441.0,0.22266425]
[1729623083489,0.83110825,67442.0,67441.0,0.22266425]
[1729623083752,0.83110825,67442.0,67434.0,0.22266425]
[1729623083753,0.35179893,67435.0,67434.0,0.22266425]
[1729623083975,0.35179893,67435.0,67432.0,0.00165]
[1729623083976,0.17480393,67433.0,67432.0,0.00165]
[1729623084191,0.49844011,67433.0,67432.0,0.00165]
[1729623084425,0.60573327,67433.0,67432.0,0.00165]
[1729623084635,0.92649242,67433.0,67432.0,0.00165]
[1729623084859,0.97269683,67433.0,67432.0,0.00165]
[1729623085566,0.92649242,67433.0,67432.0,0.00165]
[1729623086270,0.92449242,67433.0,67432.0,0.00165]
[1729623086678,1.01311402,67433.0,67432.0,0.00165]
[1729623086884,0.92449242,67433.0,67432.0,0.00165]
[1729623087120,1.01310626,67433.0,67432.0,0.00165]
[1729623087334,1.01410626,67433.0,67432.0,0.00165]
[1729623087736,0.92507088,67433.0,67432.0,0.00165]
[1729623087963,0.76159539,67433.0,67432.0,0.00165]
[1729623088174,0.82802466,67433.0,67432.0,0.00165]
[1729623088596,0.80786475,67433.0,67432.0,0.00165]
[1729623088801,0.76259539,67433.0,67432.0,0.00165]
[1729623089641,0.80684902,67433.0,67432.0,0.00165]
[1729623090742,0.76259539,67433.0,67432.0,0.00165]
[1729623091346,0.80684902,67433.0,67432.0,0.00165]
[1729623091551,0.76259539,67433.0,67432.0,0.00165]
[1729623092433,0.76359539,67433.0,67432.0,0.00165]
[1729623092916,0.76890343,67433.0,67432.0,0.00165]
[1729623097614,5.92697659,67433.0,67421.0,0.22266425]
[1729623097820,5.92697659,67433.0,67418.0,0.00165]
[1729623097821,0.18483493,67419.0,67418.0,0.00165]
[1729623098037,0.44186724,67419.0,67418.0,0.00165]
[1729623099555,0.33379408,67419.0,67418.0,0.00165]
[1729623100468,0.005,67419.0,67418.0,0.00165]
[1729623101141,0.03198971,67419.0,67418.0,0.00165]
[1729623104144,0.18031571,67419.0,67418.0,0.00165]
[1729623104829,0.03198971,67419.0,67418.0,0.00165]
[1729623107051,0.18031571,67419.0,67418.0,0.00165]
[1729623112201,0.18031571,67419.0,67418.0,0.00165]
[1729623115442,0.03198971,67419.0,67418.0,0.00165]
[1729623115674,0.005,67427.0,67418.0,0.00165]
[1729623115898,0.005,67426.0,67419.0,0.0977]
[1729623116117,0.005,67426.0,67420.0,0.148323]
[1729623116351,0.005,67426.0,67419.0,0.246026]
[1729623116564,0.07310882,67426.0,67419.0,0.246026]
[1729623120489,0.22141982,67426.0,67419.0,0.246026]
[1729623123515,0.22141982,67426.0,67419.0,0.0977]
[1729623126058,0.148313,67425.0,67419.0,0.0977]
[1729623126965,0.07310882,67426.0,67419.0,0.0977]
[1729623127169,0.09755391,67425.0,67419.0,0.0977]
[1729623128310,0.24586691,67425.0,67419.0,0.0977]
[1729623129169,0.01287521,67424.0,67419.0,0.0977]
[1729623134140,0.01287521,67424.0,67423.0,0.10807316]
[1729623134374,0.01287521,67424.0,67423.0,0.70022688]
[1729623134584,0.01287521,67424.0,67423.0,0.69215372]
[1729623135949,0.01287521,67424.0,67423.0,0.80522688]
[1729623136169,0.01287521,67424.0,67423.0,0.80722688]
[1729623136389,0.01287521,67424.0,67423.0,0.69715372]
[1729623136603,0.01287521,67424.0,67423.0,0.69915372]
[1729623136812,0.01287521,67424.0,67423.0,0.69715372]
[1729623139437,0.01287521,67424.0,67423.0,0.69215372]
[1729623142224,0.01287521,67424.0,67423.0,0.43512141]
[1729623142441,0.01287521,67424.0,67423.0,0.25372141]
[1729623143492,0.01287521,67424.0,67420.0,0.296644]
[1729623143713,0.01287521,67424.0,67418.0,0.29979707]
[1729623143714,0.01287521,67424.0,67421.0,0.1]
[1729623144121,0.01287521,67424.0,67423.0,0.148317]
[1729623144825,0.01287521,67424.0,67423.0,0.25788123]
[1729623145079,0.01287521,67424.0,67423.0,0.43278123]
[1729623145293,0.01287521,67424.0,67423.0,0.43669457]
[1729623146159,0.01287521,67424.0,67423.0,0.68565372]
[1729623146398,0.01287521,67424.0,67423.0,0.79372688]
[1729623146623,0.01287521,67424.0,67423.0,0.79872688]
[1729623146857,0.000826,67432.0,67431.0,0.15370341]
[1729623147077,0.000826,67432.0,67431.0,0.5488154]
[1729623147296,0.000826,67432.0,67431.0,0.54584973]
[1729623148461,0.000826,67432.0,67431.0,0.49859928]
[1729623153009,0.000826,67432.0,67431.0,0.32259928]
[1729623153618,0.000826,67432.0,67431.0,0.15370341]
[1729623159691,0.000826,67432.0,67427.0,0.54231287]
[1729623159692,0.148302,67430.0,67427.0,0.00149107]
[1729623159912,0.16889587,67428.0,67423.0,0.001652]
[1729623160123,0.296617,67427.0,67423.0,0.001652]
[1729623160337,0.31721087,67424.0,67423.0,0.001652]
[1729623160551,0.148315,67424.0,67423.0,0.001652]
[1729623160765,0.148311,67426.0,67423.0,0.001652]
[1729623161189,0.023,67429.0,67423.0,0.001652]
[1729623161400,0.14831,67427.0,67423.0,0.001652]
[1729623161827,0.148311,67426.0,67423.0,0.001652]
[1729623162691,0.148309,67427.0,67423.0,0.001652]
[1729623165709,0.32026415,67429.0,67423.0,0.001652]
[1729623165920,0.148307,67428.0,67423.0,0.001652]
[1729623169200,0.296615,67428.0,67423.0,0.001652]
[1729623169413,0.16889587,67427.0,67423.0,0.001652]
[1729623169621,0.148313,67425.0,67423.0,0.001652]
[1729623169828,0.0774,67426.0,67423.0,0.001652]
[1729623170042,0.1152,67425.0,67423.0,0.001652]
[1729623170262,0.148315,67424.0,67423.0,0.001652]
[1729623170657,0.263513,67425.0,67423.0,0.001652]
[1729623170801,0.148315,67424.0,67423.0,0.001652]
[1729623171219,0.1152,67425.0,67423.0,0.001652]
[1729623173999,0.263514,67425.0,67423.0,0.001652]
[1729623174465,0.1152,67425.0,67423.0,0.001652]
[1729623175354,0.263513,67425.0,67423.0,0.001652]
[1729623175585,0.1152,67425.0,67423.0,0.001652]
[1729623189077,0.20609735,67425.0,67423.0,0.001652]
[1729623189866,0.1152,67425.0,67423.0,0.001652]
[1729623190510,0.32027415,67424.0,67423.0,0.001652]
[1729623191632,0.17195915,67424.0,67423.0,0.001652]
[1729623191844,0.28012058,67424.0,67423.0,0.001652]
[1729623195588,0.17195915,67424.0,67423.0,0.001652]
[1729623198191,0.32027415,67424.0,67423.0,0.001652]
[1729623199913,0.17195915,67424.0,67423.0,0.001652]
[1729623202677,0.32027415,67424.0,67423.0,0.001652]
[1729623203507,0.36813433,67424.0,67423.0,0.001652]